[Event "World Team-ch Women 2017"]
[Site "Khanty-Mansyisk"]
[Date "2017.06.18"]
[Round "2"]
[White "Batsiashvili, Nino"]
[Black "Kulon, Klaudia"]
[Result "1/2-1/2"]
[ECO "D37"]
[WhiteElo "2468"]
[BlackElo "2381"]
[Annotator "ChessBase"]
[PlyCount "47"]
[EventDate "2017.??.??"]
[EventType "team-tourn"]
[EventCountry "RUS"]
[SourceTitle "playchess.com"]
[Source "ChessBase"]
[SourceQuality "1"]
[WhiteTeam "GEO"]
[BlackTeam "POL"]
[WhiteTeamCountry "GEO"]
[BlackTeamCountry "POL"]
[TimeControl "40/5400+30:1800+30"]

1. d4 {[%emt 0:00:00]} Nf6 {[%emt 0:00:35]} 2. c4 {[%emt 0:00:00]} e6 {[%emt 0:00:04]} 3. Nf3 {[%emt 0:00:00]} d5 {[%emt 0:00:32]} 4. Nc3 {[%emt 0:00:00]} dxc4 {[%emt 0:00:53]} 5. e4 {[%emt 0:02:02]} Bb4 {[%emt 0:00:20]} 6. Bg5 {[%emt 0:03:18]} c5 {[%emt 0:00:48]} 7. Bxc4 {[%emt 0:00:52]} cxd4 {[%emt 0:00:46]} 8. Nxd4 {[%emt 0:00:36]} Bxc3+ {[%emt 0:01:24]} 9. bxc3 {[%emt 0:00:07]} Qa5 {[%emt 0:00:22]} 10. Bxf6 {[%emt 0:01:50]} Qxc3+ {[%emt 0:01:36]} 11. Kf1 {[%emt 0:00:58]} gxf6 {[%emt 0:00:49]} 12. Rc1 {[%emt 0:00:36]} Qa5 {[%emt 0:00:46]} 13. Bb5+ {[%emt 0:09:58]} Ke7 {[%emt 0:03:54]} 14. e5 {[%emt 0:01:09]} fxe5 {[%emt 0:02:20]} 15. Qh5 {[%emt 0:00:53]} Nd7 {[%emt 0:02:31]} 16. Qg5+ {[%emt 0:01:27]} Kf8 {[%emt 0:01:39]} 17. Rxc8+ {[%emt 0:03:44]} Rxc8 {[%emt 0:00:15]} 18. Bxd7 {[%emt 0:00:05]} Qd8 {[%emt 0:01:09]} 19. Nxe6+ {[%emt 0:00:34]} fxe6 {[%emt 0:00:05]} 20. Qh6+ {[%emt 0:00:05]} Kf7 {[%emt 0:03:16]} 21. Qxe6+ {[%emt 0:01:03]} Kf8 {[%emt 0:02:49]} 22. Qh6+ {[%emt 0:00:43]} Kf7 {[%emt 0:02:16]} 23. Qe6+ {[%emt 0:00:13]} Kf8 {[%emt 0:00:05]} 24. Qh6+ {[%emt 0:00:05]} 1/2-1/2